[Event "FIDE World Rapid-ch Open 2018"]
[White "Petrosian, Tigran L."]
[Black "Tukhaev, Adam"]
[Site "St. Petersburg"]
[Round "2.31"]
[Annotator "ChessBase"]
[Result "1/2-1/2"]
[Date "2018.12.26"]
[WhiteElo "2598"]
[BlackElo "2527"]
[PlyCount "137"]
[TimeControl "900+10"]

1. Nf3 {[%emt 0:0:0]} g6 {[%emt 0:0:17]} 2. g3 {[%emt 0:0:7]} Bg7 {[%emt 0:0:2]
} 3. Bg2 {[%emt 0:0:1]} c5 {[%emt 0:0:22]} 4. c4 {[%emt 0:0:0]} Nc6 {[%emt 0:0:4]} 5. Nc3 {[%emt 0:0:1]} e5 {[%emt 0:0:26]} 6. 0-0 {[%emt 0:0:31]
} Nge7 {[%emt 0:0:30]} 7. Ne1 {[%emt 0:0:43]} 0-0 {[%emt 0:0:0]} 8. a3 {[%emt 0:0:14]} d6 {[%emt 0:1:25]} 9. Nc2 {[%emt 0:0:2]} Be6 {[%emt 0:0:8]
} 10. Ne3 {[%emt 0:0:0]} Qd7 {[%emt 0:2:36]} 11. Rb1 {[%emt 0:0:0]} Bh3 {[%emt 0:1:17]} 12. b4 {[%emt 0:0:5]} Bxg2 {[%emt 0:0:2]} 13. Kxg2 {[%emt 0:0:2]} b6 {[%emt 0:0:32]} 14. d3 {[%emt 0:0:24]} Rac8 {[%emt 0:1:29]
} 15. Qa4 {[%emt 0:1:12]} Qb7 {[%emt 0:0:50]} 16. Ned5 {[%emt 0:2:5]
} Nxd5 {[%emt 0:1:52]} 17. cxd5 {[%emt 0:2:8]} Nd4 {[%emt 0:0:0]} 18. e3 {[%emt 0:0:12]} Nf5 {[%emt 0:0:45]} 19. e4 {[%emt 0:5:0]} Nd4 {[%emt 0:0:2]} 20. bxc5 {[%emt 0:0:1]} Rxc5 {[%emt 0:0:48]} 21. Nb5 {[%emt 0:0:5]
} Nxb5 {[%emt 0:0:29]} 22. Rxb5 {[%emt 0:0:4]} Rc3 {[%emt 0:0:0]} 23. Rb3 {[%emt 0:0:35]} Rxb3 {[%emt 0:0:39]} 24. Qxb3 {[%emt 0:0:1]
} Rc8 {[%emt 0:0:6]} 25. a4 {[%emt 0:0:42]} Bf8 {[%emt 0:0:55]} 26. Be3 {[%emt 0:1:8]
} Qc7 {[%emt 0:1:2]} 27. Rc1 {[%emt 0:0:26]} Qd7 {[%emt 0:0:0]} 28. Qb5 {[%emt 0:2:27]} Qxb5 {[%emt 0:0:8]} 29. axb5 {[%emt 0:0:1]} Rxc1 {[%emt 0:0:2]} 30. Bxc1 {[%emt 0:0:1]} f6 {[%emt 0:0:14]} 31. d4 {[%emt 0:0:15]
} Kf7 {[%emt 0:0:15]} 32. Ba3 {[%emt 0:0:6]} exd4 {[%emt 0:0:0]} 33. f4 {[%emt 0:0:20]} Be7 {[%emt 0:0:11]} 34. Kf3 {[%emt 0:1:10]} Ke8 {[%emt 0:0:4]} 35. Ke2 {[%emt 0:0:3]} Kd7 {[%emt 0:0:16]} 36. Kd3 {[%emt 0:0:1]
} Bd8 {[%emt 0:0:2]} 37. Kxd4 {[%emt 0:0:8]} Bc7 {[%emt 0:0:0]} 38. g4 {[%emt 0:0:24]} Kc8 {[%emt 0:0:1]} 39. Kc4 {[%emt 0:0:11]} Kb7 {[%emt 0:0:2]} 40. e5 {[%emt 0:0:5]} fxe5 41. fxe5 {[%emt 0:0:4]} dxe5 {[%emt 0:0:12]
} 42. d6 {[%emt 0:0:1]} Bd8 {[%emt 0:0:5]} 43. Kd5 {[%emt 0:0:0]} a6 {[%emt 0:0:17]} 44. bxa6+ {[%emt 0:0:4]} Kxa6 {[%emt 0:0:1]} 45. Kxe5 {[%emt 0:0:37]} b5 {[%emt 0:0:53]} 46. Ke6 {[%emt 0:0:11]} Ka5 {[%emt 0:0:2]
} 47. d7 {[%emt 0:0:5]} b4 {[%emt 0:0:1]} 48. Bb2 {[%emt 0:0:0]} b3 {[%emt 0:0:7]} 49. Bf6 {[%emt 0:0:25]} Kb5 {[%emt 0:0:2]} 50. Bxd8 {[%emt 0:0:5]} b2 {[%emt 0:0:2]} 51. Bf6 {[%emt 0:0:4]} b1=Q {[%emt 0:0:2]
} 52. d8=Q {[%emt 0:0:1]} Qe4+ {[%emt 0:0:39]} 53. Kf7 {[%emt 0:0:3]
} Qc4+ {[%emt 0:0:24]} 54. Kg7 {[%emt 0:0:4]} Qxg4 {[%emt 0:0:0]} 55. Qd5+ {[%emt 0:0:3]} Ka6 {[%emt 0:0:5]} 56. Qc6+ {[%emt 0:0:31]
} Ka7 {[%emt 0:0:3]} 57. Qc7+ {[%emt 0:0:22]} Ka8 {[%emt 0:0:4]} 58. Be5 {[%emt 0:0:11]
} Qb4 {[%emt 0:0:19]} 59. Kxh7 {[%emt 0:0:7]} g5 {[%emt 0:0:0]} 60. Kg6 {[%emt 0:0:6]} Qe4+ {[%emt 0:0:18]} 61. Kf6 {[%emt 0:0:12]} Qf3+ {[%emt 0:0:4]} 62. Ke7 {[%emt 0:0:13]} Qb3 {[%emt 0:0:19]} 63. Qc6+ {[%emt 0:0:16]
} Ka7 {[%emt 0:0:3]} 64. Qc5+ {[%emt 0:0:3]} Kb7 {[%emt 0:0:0]} 65. Kd6 {[%emt 0:0:4]} Qh3 {[%emt 0:0:22]} 66. Qc6+ {[%emt 0:0:6]} Kb8 {[%emt 0:0:10]} 67. Kc5+ {[%emt 0:0:11]} Ka7 {[%emt 0:0:1]} 68. Qb6+ {[%emt 0:0:2]
} Ka8 {[%emt 0:0:1]} 69. Qa6# {[%emt 0:0:1]} 1/2-1/2

[Event "FIDE World Rapid-ch Open 2018"]
[White "Maghsoodloo, Parham"]
[Black "Sargissian, Gabriel"]
[Site "St. Petersburg"]
[Round "2.32"]
[Annotator "ChessBase"]
[Result "0-1"]
[Date "2018.12.26"]
[WhiteElo "2688"]
[BlackElo "2689"]
[PlyCount "65"]
[TimeControl "900+10"]

1. Nf3 {[%emt 0:0:0]} d5 {[%emt 0:0:0]} 2. g3 {[%emt 0:0:0]} Bg4 {[%emt 0:0:0]
} 3. Bg2 {[%emt 0:0:0]} e6 {[%emt 0:0:0]} 4. 0-0 {[%emt 0:0:0]} Nf6 {[%emt 0:0:1]} 5. d3 {[%emt 0:0:1]} Be7 {[%emt 0:0:9]} 6. Qe1 {[%emt 0:0:2]
} 0-0 {[%emt 0:0:10]} 7. h3 {[%emt 0:0:30]} Bh5 {[%emt 0:0:12]
} 8. g4 {[%emt 0:0:9]} Bg6 {[%emt 0:0:2]} 9. Nh4 {[%emt 0:0:2]} Nfd7 {[%emt 0:0:15]
} 10. Nxg6 {[%emt 0:0:3]} hxg6 {[%emt 0:0:2]} 11. Nd2 {[%emt 0:0:22]
} c6 {[%emt 0:0:10]} 12. e3 {[%emt 0:0:3]} a5 {[%emt 0:0:8]} 13. f4 {[%emt 0:0:11]} Na6 {[%emt 0:0:4]} 14. Nf3 {[%emt 0:0:10]} Re8 {[%emt 0:1:56]
} 15. Kh1 {[%emt 0:0:26]} Bd6 {[%emt 0:0:26]} 16. e4 {[%emt 0:0:0]} e5 {[%emt 0:2:25]} 17. f5 {[%emt 0:0:1]} gxf5 {[%emt 0:0:1]} 18. gxf5 {[%emt 0:0:1]} Nf6 {[%emt 0:0:37]} 19. Bg5 {[%emt 0:0:10]} Nc5 {[%emt 0:1:13]
} 20. Nh2 {[%emt 0:2:22]} Be7 {[%emt 0:0:18]} 21. Bf3 {[%emt 0:0:0]} dxe4 {[%emt 0:2:26]} 22. dxe4 {[%emt 0:0:1]} Qd4 {[%emt 0:0:1]} 23. c3 {[%emt 0:2:20]} Qd3 {[%emt 0:1:53]} 24. Rd1 {[%emt 0:0:1]} Qb5 {[%emt 0:0:1]
} 25. Rg1 {[%emt 0:0:1]} Red8 {[%emt 0:1:29]} 26. Rxd8+ {[%emt 0:3:23]
} Rxd8 {[%emt 0:0:2]} 27. Qh4 {[%emt 0:0:1]} Nd3 {[%emt 0:0:0]} 28. Rg2 {[%emt 0:4:48]} Rd6 {[%emt 0:2:5]} 29. Ng4 {[%emt 0:1:13]} Nf4 {[%emt 0:0:40]} 30. Bxf4 {[%emt 0:0:2]} exf4 {[%emt 0:0:36]} 31. c4 {[%emt 0:2:29]
} Qc5 {[%emt 0:0:41]} 32. e5 {[%emt 0:0:36]} Nxg4 {[%emt 0:0:0]} 33. f6 0-1

[Event "FIDE World Rapid-ch Open 2018"]
[White "Shirov, Alexei"]
[Black "Hovhannisyan, Robert"]
[Site "St. Petersburg"]
[Round "2.33"]
[Annotator "ChessBase"]
[Result "1-0"]
[Date "2018.12.26"]
[WhiteElo "2643"]
[BlackElo "2637"]
[PlyCount "83"]
[TimeControl "900+10"]

1. e4 e5 2. Nf3 Nc6 3. Bb5 Nf6 4. d3 Bc5 5. c3 0-0 6. Bg5 h6 7. Bh4 Be7 8. 0-0 d6 9. Bg3 Qe8 10. h3 Nh5 11. Bh2 f5 12. exf5 Rxf5 13. g4 Qg6 14. Bg3 Nxg3 15. gxf5 Nxf5+ 16. Kh2 Be6 17. Nbd2 Rf8 18. Qe2 Qh5 19. Ng1 Qg5 20. Ndf3 Qf6 21. Rae1 Kh8 22. d4 Bd5 23. Bxc6 Bxc6 24. dxe5 dxe5 25. Nxe5 Bd5 26. c4 Bg8 27. f4 Rd8 28. Ngf3 Bc5 29. Ng4 Qd6 30. Nfe5 Qa6 31. Rd1 Rxd1 32. Rxd1 Qxa2 33. Rd8 Qb1 34. Nf2 Kh7 35. Rd1 Qa2 36. Qe4 Be6 37. Ned3 Bxf2 38. Qxe6 Bg3+ 39. Kg2 Qa5 40. c5 g6 41. Qf7+ Kh8 42. Ne5 1-0

[Event "FIDE World Rapid-ch Open 2018"]
[White "Firouzja, Alireza"]
[Black "Grachev, Boris"]
[Site "St. Petersburg"]
[Round "2.34"]
[Annotator "ChessBase"]
[Result "1-0"]
[Date "2018.12.26"]
[WhiteElo "2607"]
[BlackElo "2626"]
[PlyCount "93"]
[TimeControl "900+10"]

1. d4 {[%emt 0:0:0]} d5 {[%emt 0:0:0]} 2. c4 {[%emt 0:0:0]} e6 {[%emt 0:0:0]} 3. g3 {[%emt 0:0:9]} Nf6 {[%emt 0:0:3]} 4. Bg2 {[%emt 0:0:2]} dxc4 {[%emt 0:0:6]} 5. Nf3 {[%emt 0:0:5]} Bd7 {[%emt 0:0:2]} 6. Ne5 {[%emt 0:0:9]
} Bc6 {[%emt 0:0:1]} 7. Nxc6 {[%emt 0:0:3]} Nxc6 {[%emt 0:0:0]} 8. 0-0 {[%emt 0:0:6]} Qd7 {[%emt 0:0:2]} 9. e3 {[%emt 0:0:3]} Rd8 {[%emt 0:0:1]
} 10. Qe2 {[%emt 0:2:53]} e5 {[%emt 0:0:32]} 11. Nc3 {[%emt 0:0:0]} Be7 {[%emt 0:0:24]} 12. d5 {[%emt 0:2:13]} Nb4 {[%emt 0:0:2]} 13. e4 {[%emt 0:0:59]} Nd3 {[%emt 0:4:0]} 14. Be3 {[%emt 0:0:8]} b5 {[%emt 0:0:0]} 15. a4 {[%emt 0:0:9]} a6 {[%emt 0:0:30]} 16. axb5 {[%emt 0:0:6]} axb5 {[%emt 0:0:2]} 17. b3 {[%emt 0:1:12]} 0-0 {[%emt 0:1:48]} 18. bxc4 {[%emt 0:0:8]
} bxc4 {[%emt 0:0:5]} 19. Qa2 {[%emt 0:0:4]} Nb4 {[%emt 0:0:0]} 20. Qe2 {[%emt 0:0:48]} Nd3 {[%emt 0:1:0]} 21. Ra6 {[%emt 0:1:4]} Ne8 {[%emt 0:1:3]} 22. Bf3 {[%emt 0:1:55]} Nd6 {[%emt 0:1:19]} 23. Bg4 {[%emt 0:0:6]
} f5 {[%emt 0:0:5]} 24. exf5 {[%emt 0:0:1]} Bf6 {[%emt 0:0:0]} 25. Rc6 {[%emt 0:1:55]} Ra8 {[%emt 0:1:20]} 26. Bf3 {[%emt 0:0:33]} Rfb8 {[%emt 0:1:10]} 27. Ne4 {[%emt 0:0:9]} Rb2 {[%emt 0:0:9]} 28. Qd1 {[%emt 0:0:3]
} Rba2 {[%emt 0:1:19]} 29. Nxd6 {[%emt 0:0:58]} cxd6 {[%emt 0:0:0]} 30. Be4 {[%emt 0:0:1]} R2a3 {[%emt 0:2:20]} 31. Qc2 {[%emt 0:0:18]} Qe7 {[%emt 0:0:24]} 32. Qxc4 {[%emt 0:0:8]} R8a4 {[%emt 0:0:6]} 33. Rc8+ {[%emt 0:0:34]
} Kf7 {[%emt 0:0:1]} 34. Qc2 {[%emt 0:0:6]} Rxe4 {[%emt 0:0:0]} 35. Rc7 {[%emt 0:0:2]} Rea4 {[%emt 0:0:11]} 36. Rxe7+ {[%emt 0:0:3]} Bxe7 {[%emt 0:0:1]} 37. Qc8 {[%emt 0:0:5]} Ra8 {[%emt 0:0:13]} 38. Qe6+ {[%emt 0:0:7]
} Kf8 {[%emt 0:0:1]} 39. Rb1 {[%emt 0:0:2]} Ra1 {[%emt 0:0:0]} 40. Rxa1 {[%emt 0:0:9]} Rxa1+ {[%emt 0:0:1]} 41. Kg2 {[%emt 0:0:1]} Ne1+ {[%emt 0:0:21]} 42. Kh3 {[%emt 0:0:1]} Nf3 {[%emt 0:0:2]} 43. f6 {[%emt 0:0:4]
} Bxf6 {[%emt 0:0:10]} 44. Qxd6+ {[%emt 0:0:6]} Be7 {[%emt 0:0:0]} 45. Qb8+ {[%emt 0:0:4]} Kf7 {[%emt 0:0:2]} 46. d6 {[%emt 0:0:8]} Rh1 {[%emt 0:0:38]} 47. Kg2 {[%emt 0:0:11]} 1-0

[Event "FIDE World Rapid-ch Open 2018"]
[White "Timofeev, Artyom"]
[Black "Kazhgaleyev, Murtas"]
[Site "St. Petersburg"]
[Round "2.35"]
[Annotator "ChessBase"]
[Result "1-0"]
[Date "2018.12.26"]
[WhiteElo "2589"]
[BlackElo "2587"]
[PlyCount "127"]
[TimeControl "900+10"]

1. e4 {[%emt 0:0:0]} d6 {[%emt 0:0:0]} 2. d4 {[%emt 0:0:3]} Nf6 {[%emt 0:0:0]} 3. Bd3 {[%emt 0:0:17]} e5 {[%emt 0:0:2]} 4. c3 {[%emt 0:0:3]} Nc6 {[%emt 0:0:22]} 5. Nf3 {[%emt 0:0:7]} g6 {[%emt 0:0:46]} 6. 0-0 {[%emt 0:0:0]} Bg7 {[%emt 0:0:2]} 7. Re1 {[%emt 0:0:8]} 0-0 {[%emt 0:0:12]} 8. Nbd2 {[%emt 0:0:9]} Nh5 {[%emt 0:0:31]} 9. Nb3 {[%emt 0:0:18]} Bg4 {[%emt 0:1:55]
} 10. Be2 {[%emt 0:0:22]} Re8 {[%emt 0:1:5]} 11. h3 {[%emt 0:0:0]} Bc8 {[%emt 0:0:18]} 12. Bg5 {[%emt 0:0:29]} Bf6 {[%emt 0:0:7]} 13. Be3 {[%emt 0:0:5]} exd4 {[%emt 0:0:31]} 14. Nfxd4 {[%emt 0:0:18]} Ng7 {[%emt 0:0:17]
} 15. Nxc6 {[%emt 0:0:29]} bxc6 {[%emt 0:0:2]} 16. Na5 {[%emt 0:0:16]
} Bd7 {[%emt 0:0:33]} 17. Ba6 {[%emt 0:0:30]} Rb8 {[%emt 0:0:0]} 18. Bb7 {[%emt 0:0:55]} Rxe4 {[%emt 0:0:4]} 19. Nxc6 {[%emt 0:0:57]} Bxc6 {[%emt 0:0:3]} 20. Bxc6 {[%emt 0:0:2]} Re5 {[%emt 0:0:18]} 21. Qd2 {[%emt 0:1:23]
} a5 {[%emt 0:0:2]} 22. Ba7 {[%emt 0:0:9]} Ne6 {[%emt 0:0:0]} 23. Bxb8 {[%emt 0:0:11]} Qxb8 {[%emt 0:0:2]} 24. g3 {[%emt 0:1:42]} Qb6 {[%emt 0:0:12]} 25. Bg2 {[%emt 0:0:50]} Rb5 {[%emt 0:0:35]} 26. Re2 {[%emt 0:0:6]
} h5 {[%emt 0:0:13]} 27. h4 {[%emt 0:1:13]} g5 {[%emt 0:0:2]} 28. a4 {[%emt 0:0:7]} Rc5 {[%emt 0:0:57]} 29. Bd5 {[%emt 0:0:25]} gxh4 {[%emt 0:0:7]
} 30. Bxe6 {[%emt 0:0:4]} fxe6 {[%emt 0:0:2]} 31. Qe3 {[%emt 0:2:15]
} hxg3 {[%emt 0:0:35]} 32. fxg3 {[%emt 0:0:6]} Kg7 {[%emt 0:0:0]} 33. Rf1 {[%emt 0:0:23]} Re5 {[%emt 0:2:18]} 34. Qxb6 {[%emt 0:0:11]} cxb6 {[%emt 0:0:2]} 35. Rxe5 {[%emt 0:0:22]} Bxe5 {[%emt 0:0:1]} 36. Kg2 {[%emt 0:0:2]
} d5 {[%emt 0:0:3]} 37. Re1 {[%emt 0:1:12]} Kf6 {[%emt 0:0:0]} 38. Kh3 {[%emt 0:0:2]} d4 {[%emt 0:0:40]} 39. cxd4 {[%emt 0:0:4]} Bxd4 {[%emt 0:0:1]} 40. b3 {[%emt 0:0:5]} e5 {[%emt 0:0:5]} 41. Kg2 {[%emt 0:0:4]
} Kg5 {[%emt 0:0:43]} 42. Rf1 {[%emt 0:0:15]} Bc5 {[%emt 0:0:0]} 43. Rf7 {[%emt 0:1:38]} e4 {[%emt 0:0:4]} 44. Rf4 {[%emt 0:0:12]} e3 {[%emt 0:0:2]
} 45. Kf3 {[%emt 0:0:2]} Kg6 {[%emt 0:0:14]} 46. Rc4 {[%emt 0:0:0]} Kf5 {[%emt 0:0:10]} 47. Re4 {[%emt 0:0:2]} Kg5 {[%emt 0:0:8]} 48. Re8 {[%emt 0:0:8]} Kf5 {[%emt 0:0:6]} 49. Re4 {[%emt 0:1:4]} Kg5 {[%emt 0:0:10]
} 50. Re5+ {[%emt 0:0:10]} Kg6 {[%emt 0:0:1]} 51. Ke2 {[%emt 0:0:48]
} Kh6 {[%emt 0:0:25]} 52. Kd3 {[%emt 0:0:2]} Kg6 {[%emt 0:0:0]} 53. b4 {[%emt 0:0:31]} Bxb4 {[%emt 0:0:22]} 54. Kxe3 {[%emt 0:0:4]} Bc5+ {[%emt 0:0:14]} 55. Ke4 {[%emt 0:0:6]} Bg1 {[%emt 0:0:20]} 56. Kf4 {[%emt 0:0:10]
} Bf2 {[%emt 0:0:59]} 57. Re6+ {[%emt 0:0:21]} Kg7 {[%emt 0:0:0]} 58. Re2 {[%emt 0:0:3]} Bc5 {[%emt 0:0:28]} 59. Kg5 {[%emt 0:0:4]} b5 {[%emt 0:1:18]} 60. axb5 {[%emt 0:0:7]} a4 {[%emt 0:0:1]} 61. Kxh5 {[%emt 0:0:32]
} a3 {[%emt 0:0:2]} 62. Kg5 {[%emt 0:0:6]} Kf7 {[%emt 0:0:0]} 63. Kf5 {[%emt 0:0:3]} Bd4 {[%emt 0:0:5]} 64. Ra2 {[%emt 0:0:9]} 1-0

[Event "FIDE World Rapid-ch Open 2018"]
[White "Saric, Ivan"]
[Black "Kevlishvili, Robby"]
[Site "St. Petersburg"]
[Round "2.36"]
[Annotator "ChessBase"]
[Result "0-1"]
[Date "2018.12.26"]
[WhiteElo "2695"]
[BlackElo "2451"]
[PlyCount "84"]
[TimeControl "900+10"]

1. e4 {[%emt 0:0:0]} c5 {[%emt 0:0:0]} 2. Nf3 {[%emt 0:0:0]} d6 {[%emt 0:0:0]} 3. d4 {[%emt 0:0:0]} cxd4 {[%emt 0:0:2]} 4. Nxd4 {[%emt 0:0:0]} Nf6 {[%emt 0:0:2]} 5. Nc3 {[%emt 0:0:0]} a6 {[%emt 0:0:4]} 6. a3 {[%emt 0:0:0]
} Nc6 {[%emt 0:0:17]} 7. Be2 {[%emt 0:0:4]} e5 {[%emt 0:1:46]
} 8. Nf3 {[%emt 0:0:1]} Be6 {[%emt 0:0:9]} 9. Ng5 {[%emt 0:0:5]} Be7 {[%emt 0:1:41]
} 10. Nxe6 {[%emt 0:0:9]} fxe6 {[%emt 0:0:2]} 11. g4 {[%emt 0:1:36]
} d5 {[%emt 0:1:41]} 12. g5 {[%emt 0:1:3]} Nxe4 {[%emt 0:0:0]} 13. Nxe4 {[%emt 0:0:0]} dxe4 {[%emt 0:0:1]} 14. Qxd8+ {[%emt 0:0:2]} Rxd8 {[%emt 0:0:2]} 15. c3 {[%emt 0:0:8]} Bc5 {[%emt 0:0:24]} 16. b4 {[%emt 0:0:8]
} Bb6 {[%emt 0:0:7]} 17. Ra2 {[%emt 0:2:46]} Ne7 {[%emt 0:0:0]} 18. c4 {[%emt 0:1:50]} Bd4 {[%emt 0:0:13]} 19. 0-0 {[%emt 0:0:23]} Nf5 {[%emt 0:0:19]} 20. Kh1 {[%emt 0:1:30]} e3 {[%emt 0:1:13]} 21. fxe3 {[%emt 0:0:8]
} Nxe3 {[%emt 0:0:4]} 22. Re1 {[%emt 0:0:54]} Nf5 {[%emt 0:0:0]} 23. c5 {[%emt 0:0:15]} Ke7 {[%emt 0:1:38]} 24. Bf3 {[%emt 0:0:13]} Bc3 {[%emt 0:0:30]} 25. Rf1 {[%emt 0:0:40]} Rhf8 {[%emt 0:0:1]} 26. Rc2 {[%emt 0:1:17]
} Bd4 {[%emt 0:1:41]} 27. Bxb7 {[%emt 0:1:19]} Ng3+ {[%emt 0:0:0]} 28. hxg3 {[%emt 0:0:1]} Rxf1+ {[%emt 0:0:2]} 29. Kg2 {[%emt 0:0:0]} Rdf8 {[%emt 0:0:21]} 30. Kh3 {[%emt 0:1:42]} R8f2 {[%emt 0:2:4]} 31. Bd2 {[%emt 0:0:41]} Kd7 {[%emt 0:0:18]} 32. Be4 {[%emt 0:2:32]} Rd1 {[%emt 0:0:29]
} 33. g6 {[%emt 0:0:25]} h6 {[%emt 0:0:35]} 34. Bc3 {[%emt 0:0:0]} Rxc2 {[%emt 0:0:3]} 35. Bxc2 {[%emt 0:0:1]} Rh1+ {[%emt 0:0:1]} 36. Kg2 {[%emt 0:0:1]} Rg1+ {[%emt 0:0:7]} 37. Kh2 {[%emt 0:0:1]} Rc1 {[%emt 0:0:1]
} 38. Ba4+ {[%emt 0:0:1]} Ke7 {[%emt 0:0:15]} 39. Bd2 {[%emt 0:0:1]
} Ra1 {[%emt 0:0:11]} 40. c6 {[%emt 0:0:2]} Bb6 {[%emt 0:0:0]} 41. Bb3 {[%emt 0:1:3]} Rb1 {[%emt 0:0:12]} 42. b5 {[%emt 0:0:14]} Rxb3 {[%emt 0:0:6]} 0-1

[Event "FIDE World Rapid-ch Open 2018"]
[White "Sharma, Dinesh K."]
[Black "Pantsulaia, Levan"]
[Site "St. Petersburg"]
[Round "2.37"]
[Annotator "ChessBase"]
[Result "1/2-1/2"]
[Date "2018.12.26"]
[WhiteElo "2295"]
[BlackElo "2597"]
[PlyCount "50"]
[TimeControl "900+10"]

1. e4 {[%emt 0:0:0]} c5 {[%emt 0:0:0]} 2. Nf3 {[%emt 0:0:0]} e6 {[%emt 0:0:0]} 3. d4 {[%emt 0:0:0]} cxd4 {[%emt 0:0:2]} 4. Nxd4 {[%emt 0:0:0]} a6 {[%emt 0:0:1]} 5. Bd3 {[%emt 0:0:4]} Bc5 {[%emt 0:0:39]} 6. Nb3 {[%emt 0:0:3]
} Ba7 {[%emt 0:0:1]} 7. Qg4 {[%emt 0:0:9]} Qf6 {[%emt 0:0:0]} 8. Qg3 {[%emt 0:0:7]} Nc6 {[%emt 0:0:53]} 9. Nc3 {[%emt 0:0:19]} Nge7 {[%emt 0:0:10]} 10. f4 {[%emt 0:0:23]} d6 {[%emt 0:1:2]} 11. e5 {[%emt 0:0:0]} Qh6 {[%emt 0:0:34]} 12. Ne4 {[%emt 0:1:29]} Nf5 {[%emt 0:0:36]} 13. Nxd6+ {[%emt 0:0:7]} Nxd6 {[%emt 0:0:2]} 14. exd6 {[%emt 0:0:2]} Qf6 {[%emt 0:1:11]
} 15. c3 {[%emt 0:0:19]} 0-0 {[%emt 0:1:35]} 16. Be3 {[%emt 0:0:0]} e5 {[%emt 0:2:10]} 17. 0-0 {[%emt 0:0:21]} Bxe3+ {[%emt 0:1:18]} 18. Qxe3 {[%emt 0:0:4]} Qxd6 {[%emt 0:0:2]} 19. f5 {[%emt 0:2:4]} f6 {[%emt 0:3:40]
} 20. Rad1 {[%emt 0:0:6]} Qc7 {[%emt 0:0:1]} 21. Qc5 {[%emt 0:2:20]
} Bd7 {[%emt 0:0:45]} 22. Bc4+ {[%emt 0:0:23]} Kh8 {[%emt 0:0:0]} 23. Qd6 {[%emt 0:0:46]} Qb6+ {[%emt 0:0:25]} 24. Qc5 {[%emt 0:0:4]} Qc7 {[%emt 0:0:6]} 25. Qd6 {[%emt 0:0:3]} Qb6+ {[%emt 0:1:6]} 1/2-1/2

[Event "FIDE World Rapid-ch Open 2018"]
[White "Tsoi, Dmitry"]
[Black "Alekseev, Evgeny"]
[Site "St. Petersburg"]
[Round "2.38"]
[Annotator "ChessBase"]
[Result "1/2-1/2"]
[Date "2018.12.26"]
[WhiteElo "2424"]
[BlackElo "2639"]
[PlyCount "62"]
[TimeControl "900+10"]

1. e4 {[%emt 0:0:0]} e5 {[%emt 0:0:0]} 2. Nf3 {[%emt 0:0:0]} Nc6 {[%emt 0:0:0]
} 3. Bb5 {[%emt 0:0:0]} a6 {[%emt 0:0:1]} 4. Ba4 {[%emt 0:0:0]} b5 {[%emt 0:0:3]} 5. Bb3 {[%emt 0:0:0]} Na5 {[%emt 0:0:2]} 6. 0-0 {[%emt 0:1:3]
} d6 {[%emt 0:0:2]} 7. d4 {[%emt 0:0:21]} exd4 {[%emt 0:0:4]
} 8. c3 {[%emt 0:0:15]} d3 {[%emt 0:1:42]} 9. Qxd3 {[%emt 0:1:3]} Bb7 {[%emt 0:0:15]
} 10. Bc2 {[%emt 0:0:29]} Nf6 {[%emt 0:0:23]} 11. a4 {[%emt 0:0:0]} Be7 {[%emt 0:1:3]} 12. axb5 {[%emt 0:1:2]} Bxe4 {[%emt 0:1:8]} 13. Qe2 {[%emt 0:0:8]} Bxc2 {[%emt 0:0:3]} 14. Qxc2 {[%emt 0:0:2]} axb5 {[%emt 0:0:6]
} 15. Nd4 {[%emt 0:0:3]} c5 {[%emt 0:1:34]} 16. Nf5 {[%emt 0:0:0]} 0-0 {[%emt 0:0:13]} 17. Qe2 {[%emt 0:1:18]} Re8 {[%emt 0:0:38]} 18. Qxb5 {[%emt 0:0:12]} Bf8 {[%emt 0:0:24]} 19. Bf4 {[%emt 0:1:12]} g6 {[%emt 0:4:9]
} 20. b4 {[%emt 0:3:59]} cxb4 {[%emt 0:1:23]} 21. cxb4 {[%emt 0:0:2]
} Nc6 {[%emt 0:0:34]} 22. Rxa8 {[%emt 0:1:49]} Qxa8 {[%emt 0:0:0]} 23. Nxd6 {[%emt 0:0:4]} Nd4 {[%emt 0:1:0]} 24. Qc4 {[%emt 0:0:6]} Ne2+ {[%emt 0:0:25]} 25. Kh1 {[%emt 0:0:1]} Re6 {[%emt 0:0:10]} 26. Be3 {[%emt 0:1:53]
} Bxd6 {[%emt 0:0:9]} 27. Qxe2 {[%emt 0:0:4]} Bxb4 {[%emt 0:0:0]} 28. Nd2 {[%emt 0:0:7]} Bc5 {[%emt 0:0:39]} 29. Re1 {[%emt 0:1:24]} Qd5 {[%emt 0:0:44]} 30. Nf1 {[%emt 0:0:21]} Kg7 {[%emt 0:0:22]} 31. Qd1 {[%emt 0:0:22]
} Qxd1 {[%emt 0:1:41]} 1/2-1/2

[Event "FIDE World Rapid-ch Open 2018"]
[White "Yudin, Sergei"]
[Black "AL-Sayed, Mohammed"]
[Site "St. Petersburg"]
[Round "2.39"]
[Annotator "ChessBase"]
[Result "1-0"]
[Date "2018.12.26"]
[WhiteElo "2507"]
[BlackElo "2484"]
[PlyCount "101"]
[TimeControl "900+10"]

1. e4 {[%emt 0:0:0]} c5 {[%emt 0:0:0]} 2. Nf3 {[%emt 0:0:0]} Nc6 {[%emt 0:0:0]
} 3. c3 {[%emt 0:0:10]} Nf6 {[%emt 0:0:28]} 4. e5 {[%emt 0:0:0]} Nd5 {[%emt 0:0:2]} 5. Bc4 {[%emt 0:0:25]} Nb6 {[%emt 0:0:12]} 6. Bb3 {[%emt 0:0:2]
} d6 {[%emt 0:0:23]} 7. exd6 {[%emt 0:0:4]} Qxd6 {[%emt 0:0:0]} 8. 0-0 {[%emt 0:0:4]} Be6 {[%emt 0:0:22]} 9. Bxe6 {[%emt 0:0:4]} Qxe6 {[%emt 0:0:2]} 10. a4 {[%emt 0:0:2]} Qd7 {[%emt 0:0:35]} 11. a5 {[%emt 0:0:0]} Nd5 {[%emt 0:0:3]} 12. a6 {[%emt 0:0:23]} b6 {[%emt 0:0:13]} 13. d4 {[%emt 0:0:6]} cxd4 {[%emt 0:0:33]} 14. Nxd4 {[%emt 0:0:7]} e6 {[%emt 0:0:0]} 15. Qa4 {[%emt 0:1:7]} Nxd4 {[%emt 0:2:32]} 16. Qxd4 {[%emt 0:0:3]
} Bc5 {[%emt 0:0:26]} 17. Qxg7 {[%emt 0:1:43]} 0-0-0 {[%emt 0:0:3]} 18. Qg3 {[%emt 0:1:2]} Rhg8 {[%emt 0:1:38]} 19. Qf3 {[%emt 0:0:6]} Qc6 {[%emt 0:0:0]} 20. Nd2 {[%emt 0:1:43]} f5 {[%emt 0:0:23]} 21. Nb3 {[%emt 0:0:29]} Rg4 {[%emt 0:1:24]} 22. h3 {[%emt 0:1:13]} Re4 {[%emt 0:1:19]} 23. Nxc5 {[%emt 0:0:28]
} Qxc5 {[%emt 0:0:2]} 24. Bh6 {[%emt 0:0:41]} Rg8 {[%emt 0:0:0]} 25. Rfe1 {[%emt 0:0:29]} Nf6 {[%emt 0:0:23]} 26. Be3 {[%emt 0:1:5]} Qc6 {[%emt 0:1:41]} 27. Kh1 {[%emt 0:0:29]} Rc4 {[%emt 0:0:38]} 28. Bd4 {[%emt 0:1:15]
} Rg6 {[%emt 0:1:36]} 29. Qxc6+ {[%emt 0:1:25]} Rxc6 {[%emt 0:0:0]} 30. b3 {[%emt 0:0:37]} Nd5 {[%emt 0:0:15]} 31. Be5 {[%emt 0:1:1]} Rg8 {[%emt 0:0:26]} 32. c4 {[%emt 0:0:11]} Nb4 {[%emt 0:0:13]} 33. Re2 {[%emt 0:0:4]
} Rd8 {[%emt 0:0:13]} 34. Bc3 {[%emt 0:0:10]} Nd3 {[%emt 0:0:0]} 35. Bf6 {[%emt 0:1:40]} Rd7 {[%emt 0:0:9]} 36. g4 {[%emt 0:0:49]} e5 {[%emt 0:0:24]
} 37. g5 {[%emt 0:0:20]} e4 {[%emt 0:0:9]} 38. f3 {[%emt 0:0:0]} exf3 {[%emt 0:1:9]} 39. Re3 {[%emt 0:0:59]} f2 {[%emt 0:0:29]} 40. Kg2 {[%emt 0:0:7]} Rcd6 {[%emt 0:0:11]} 41. Kf1 {[%emt 0:0:7]} Kc7 {[%emt 0:0:0]} 42. Rd1 {[%emt 0:0:10]} Kc6 {[%emt 0:0:7]} 43. h4 {[%emt 0:0:18]} b5 {[%emt 0:0:14]} 44. h5 {[%emt 0:0:13]} bxc4 {[%emt 0:0:2]} 45. bxc4 {[%emt 0:0:1]
} f4 {[%emt 0:0:7]} 46. Re7 {[%emt 0:0:15]} Rxe7 {[%emt 0:0:0]} 47. Bxe7 {[%emt 0:0:2]} Rd7 {[%emt 0:0:1]} 48. Bf6 {[%emt 0:0:8]} Nc5 {[%emt 0:0:22]} 49. Rxd7 Kxd7 {[%emt 0:0:2]} 50. g6 {[%emt 0:0:22]} hxg6 {[%emt 0:0:5]} 51. h6 {[%emt 0:0:2]} 1-0